bitfinex-derivatives/quotes_SOLF0:USTF0_20251024
["timestamp","ask_amount","ask_price","bid_price","bid_amount"]
[1761291693059,2.67,192.78,192.71,0.90285255]
[1761291693262,2.67,192.78,192.74,42.82]
[1761291695471,2.67,192.78,192.72,4.6687]
[1761291696171,2.67,192.78,192.73,42.82]
[1761291696362,2.67,192.78,192.72,4.6687]
[1761291696565,2.67,192.78,192.73,42.82]
[1761291697257,2.67,192.78,192.72,4.6687]
[1761291697463,2.67,192.78,192.73,42.82]
[1761291697872,2.67,192.78,192.72,4.6687]
[1761291698074,2.67,192.78,192.73,42.82]
[1761291698373,2.67,192.78,192.72,4.6687]
[1761291698578,2.67,192.78,192.73,42.82]
[1761291698871,2.67,192.78,192.72,4.6687]
[1761291699171,2.67,192.78,192.73,42.82]
[1761291699364,2.67,192.78,192.72,4.6687]
[1761291699565,2.67,192.78,192.73,42.82]
[1761291700579,2.67,192.78,192.74,42.82]
[1761291701481,2.67,192.78,192.72,4.6687]
[1761291701663,2.67,192.78,192.74,42.82]
[1761291701867,2.67,192.78,192.72,4.6687]
[1761291702068,2.67,192.78,192.74,42.82]
[1761291702880,2.67,192.78,192.72,4.6687]
[1761291703380,2.67,192.78,192.73,42.82]
[1761291705375,2.67,192.78,192.74,42.82]
[1761291705575,2.67,192.78,192.72,4.6687]
[1761291705983,2.67,192.78,192.73,42.82]
[1761291706285,2.72,192.81,192.74,42.82]
[1761291706481,3.92366176,192.8,192.73,6.18327769]
[1761291706676,3.92366176,192.79,192.74,42.82]
[1761291706875,2.72,192.81,192.74,42.82]
[1761291707185,3.92409149,192.8,192.75,42.82]
[1761291707374,3.92409149,192.79,192.75,44.33487769]
[1761291707571,4.6668,192.81,192.75,44.33487769]
[1761291707774,4.6668,192.81,192.76,42.82]
[1761291707775,3.92424071,192.8,192.76,42.82]
[1761291707989,7.3868,192.81,192.76,42.82]
[1761291708283,3.92424245,192.8,192.76,42.82]
[1761291708486,7.3868,192.81,192.76,42.82]
[1761291708787,3.9239217,192.8,192.76,42.82]
[1761291709081,7.3862,192.83,192.77,1.51487769]
[1761291709282,6.64395235,192.82,192.77,1.51487769]
[1761291709470,3.92395235,192.81,192.77,1.51487769]
[1761291709671,2.72,192.82,192.77,1.51487769]
[1761291709875,3.92349125,192.81,192.77,1.51487769]
[1761291710074,2.72,192.82,192.77,1.51487769]
[1761291710284,3.92348865,192.81,192.77,1.51487769]
[1761291710485,2.72,192.82,192.77,1.51487769]
[1761291710684,3.92309337,192.81,192.77,1.51487769]
[1761291710976,2.72,192.81,192.77,1.51487769]
[1761291714192,2.72,192.81,192.76,42.82]
[1761291714393,2.72,192.81,192.76,44.33487769]
[1761291715887,2.72,192.81,192.77,42.82]
[1761291721409,7.3868,192.81,192.72,4.6686]
[1761291721708,2.76,192.79,192.73,42.82]
[1761291722395,2.76,192.79,192.71,0.90285255]
[1761291722696,2.76,192.79,192.72,42.82]
[1761291722887,2.76,192.78,192.71,0.90285255]
[1761291723092,2.76,192.78,192.72,42.82]
[1761291723705,2.76,192.76,192.71,0.90285255]
[1761291723999,2.76,192.76,192.72,42.82]
[1761291724304,2.76,192.76,192.71,43.72285255]
[1761291727299,2.76,192.76,192.71,48.39175255]
[1761291728203,2.76,192.76,192.72,42.82]
[1761291728399,2.76,192.76,192.71,5.57175255]
[1761291728710,2.76,192.76,192.71,48.39175255]
[1761291733819,2.76,192.76,192.72,4.6686]
[1761291735507,2.76,192.76,192.72,47.4886]
[1761291737500,2.76,192.76,192.71,0.90285255]
[1761291737809,2.76,192.75,192.71,0.90285255]
[1761291738711,2.76,192.75,192.7,42.82]
[1761291739817,2.76,192.75,192.68,5.57272826]
[1761291740014,2.76,192.75,192.68,48.39272826]
[1761291741013,2.76,192.75,192.69,4.6694]
[1761291743315,2.76,192.74,192.69,4.6694]
[1761291750416,2.76,192.74,192.68,0.90302826]
[1761291753319,2.76,192.74,192.67,4.67]
[1761291753518,2.7,192.73,192.67,4.67]
[1761291758223,2.7,192.73,192.65,0.90314544]
[1761291759026,2.7,192.73,192.65,5.57354544]
[1761291761220,2.7,192.72,192.65,0.90314544]
[1761291762123,7.369,192.72,192.65,0.90314544]
[1761291762325,2.7,192.71,192.65,0.90314544]
[1761291772737,2.7,192.7,192.65,0.90314544]
[1761291779437,2.36867375,192.74,192.65,0.90314544]
[1761291779732,2.61,192.69,192.61,4.6713]
[1761291779941,2.61,192.69,192.62,0.90329782]
[1761291781038,2.61,192.68,192.62,0.90329782]
[1761291783341,2.61,192.66,192.58,4.672]
[1761291783734,2.61,192.66,192.6,0.90340334]
[1761291787444,7.2804,192.66,192.6,0.90340334]
[1761291787743,2.61,192.65,192.6,0.90340334]
[1761291798449,6.44304831,192.74,192.56,42.84]
[1761291798450,2.61,192.63,192.56,42.84]
[1761291798947,2.61,192.63,192.56,43.74357926]
[1761291799145,2.61,192.61,192.47,61.30030637]
[1761291799352,2.61,192.59,192.5,2.36867375]
[1761291799750,2.61,192.59,192.5,7.04277375]
[1761291800445,2.61,192.59,192.5,2.36867375]
[1761291801154,2.61,192.59,192.47,61.30030637]
[1761291801354,2.61,192.59,192.47,63.66898012]
[1761291802553,2.61,192.59,192.49,0.90386089]
[1761291802751,2.61,192.58,192.49,2.42251848]
[1761291803551,2.61,192.58,192.49,0.90386089]
[1761291803751,4.12865759,192.58,192.49,2.42251848]
[1761291804057,2.61,192.57,192.49,2.42251848]
[1761291804256,2.61,192.57,192.49,0.90386089]
[1761291804456,2.61,192.57,192.49,2.42251848]
[1761291805165,2.61,192.49,192.34,12.94023508]
[1761291805356,1.51865759,192.48,192.39,1.51865759]
[1761291805652,2.61,192.47,192.39,1.51865759]
[1761291806159,2.61,192.47,192.39,42.98]
[1761291806351,2.61,192.47,192.39,47.6567]
[1761291806659,2.61,192.47,192.39,4.6767]
[1761291806849,2.61,192.47,192.39,47.6567]
[1761291808661,2.61,192.47,192.39,49.17535759]
[1761291809653,1.51865759,192.47,192.39,4.6767]
[1761291809852,2.84,192.46,192.39,4.6767]
[1761291810960,2.84,192.46,192.39,6.19535759]
[1761291812460,2.84,192.46,192.22,72.8125]
[1761291812461,2.84,192.53,192.28,43.0]
[1761291812666,2.84,192.43,192.35,1.51865759]
[1761291813063,2.84,192.43,192.37,1.51865759]
[1761291813261,2.84,192.43,192.33,4.6782]
[1761291813467,2.84,192.43,192.37,1.51865759]
[1761291814151,2.84,192.43,192.34,1.51865759]
[1761291814862,4.35865759,192.43,192.33,4.6782]
[1761291815066,2.84,192.42,192.34,1.51865759]
[1761291816167,2.84,192.42,192.35,4.6777]
[1761291820264,2.84,192.42,192.32,0.90455396]
[1761291820460,2.84,192.42,192.33,1.51865759]
[1761291820664,2.84,192.42,192.35,1.51865759]
[1761291820865,2.84,192.42,192.38,1.51865759]
[1761291821366,2.84,192.42,192.32,0.90455396]
[1761291821367,2.84,192.42,192.4,1.51865759]
[1761291823176,2.84,192.48,192.38,4.677]
[1761291823472,2.84,192.48,192.41,1.51865759]
[1761291823962,2.84,192.48,192.45,1.51865759]
[1761291826274,2.84,192.48,192.43,1.51865759]
[1761291826866,24.86964629,192.59,192.32,0.90455396]
[1761291826867,2.84,192.52,192.47,1.51865759]
[1761291827171,2.84,192.52,192.49,1.51865759]
[1761291827573,3.1183,192.52,192.49,1.51865759]
[1761291829170,3.1183,192.52,192.51,1.51865759]
[1761291830076,3.1183,192.52,192.47,4.6746]
[1761291830279,3.1183,192.52,192.51,1.51865759]
[1761291833577,3.1183,192.52,192.47,4.6746]
[1761291833578,3.1183,192.52,192.47,1.51865759]
[1761291833879,3.1183,192.52,192.49,1.51865759]
[1761291835776,3.1183,192.52,192.41,4.6761]
[1761291835980,2.84,192.51,192.44,1.51865759]
[1761291837479,2.84,192.51,192.46,1.51865759]
[1761291837672,2.84,192.5,192.46,1.51865759]
[1761291838271,2.84,192.5,192.48,1.51865759]
[1761291838468,2.84,192.5,192.46,1.51865759]
[1761291840978,2.84,192.5,192.48,1.51865759]
[1761291842480,2.84,192.5,192.38,43.14]
[1761291842685,2.84,192.5,192.48,1.51865759]
[1761291843893,2.9183,192.52,192.48,1.51865759]
[1761291844182,2.9183,192.52,192.5,1.51865759]
[1761291847083,2.64,192.52,192.5,1.51865759]
[1761291848380,2.64,192.52,192.45,4.6753]
[1761291848578,4.15865759,192.52,192.43,4.6758]
[1761291848782,2.64,192.51,192.43,4.6758]
[1761291848985,2.64,192.5,192.4,1.51865759]
[1761291849188,2.64,192.49,192.4,1.51865759]
[1761291850189,2.64,192.43,192.32,0.90455396]
[1761291850385,4.83293722,192.54,192.32,0.90455396]
[1761291850386,2.64,192.4,192.32,0.90455396]
[1761291851088,2.64,192.4,192.32,2.42321155]
[1761291852896,2.64,192.4,192.32,0.90455396]
[1761291853096,2.64,192.4,192.32,2.42321155]
[1761291853488,2.64,192.4,192.34,1.51865759]
[1761291855389,2.64,192.4,192.32,2.42321155]
[1761291856393,2.64,192.4,192.32,0.90455396]
[1761291856593,2.64,192.38,192.3,1.51865759]
[1761291856800,2.64,192.34,192.28,0.9048009]
[1761291857297,2.64,192.38,192.29,1.51865759]
[1761291857702,2.64,192.38,192.28,0.9048009]
[1761291858088,2.64,192.38,192.29,1.51865759]
[1761291859491,2.64,192.38,192.31,1.51865759]
[1761291859689,2.64,192.38,192.35,1.51865759]
[1761291860398,2.64,192.42,192.35,1.51865759]
[1761291861099,2.64,192.42,192.34,1.51865759]
[1761291861502,2.64,192.42,192.36,1.51865759]
[1761291862107,2.64,192.42,192.31,4.6787]
[1761291862299,2.64,192.42,192.36,1.51865759]
[1761291862703,2.64,192.42,192.38,1.51865759]
[1761291864504,2.64,192.42,192.35,4.6777]
[1761291864702,2.64,192.42,192.35,7.05402609]
[1761291866502,2.64,192.42,192.36,4.6773]
[1761291866803,2.64,192.45,192.38,2.37632609]
[1761291868196,2.83,192.42,192.33,2.37632609]
[1761291868702,2.83,192.42,192.34,4.6778]
[1761291869698,2.83,192.42,192.35,4.6776]
[1761291869898,2.83,192.42,192.35,7.05392609]
[1761291872810,2.83,192.42,192.36,4.6773]
[1761291881409,2.63,192.41,192.36,4.6773]
[1761291882109,2.63,192.4,192.33,4.6782]
[1761291883108,2.63,192.39,192.33,4.6782]
[1761291883612,2.63,192.39,192.33,7.05452609]
[1761291884120,2.63,192.39,192.33,4.6782]
[1761291884719,2.63,192.39,192.33,7.05452609]
[1761291885620,2.63,192.42,192.33,2.37632609]
[1761291887022,2.63,192.42,192.36,2.37632609]
[1761291887213,2.63,192.42,192.37,2.37632609]
[1761291893418,2.63,192.42,192.36,4.6773]
[1761291893624,4.6755,192.45,192.28,0.9048009]
[1761291893625,2.63,192.4,192.32,2.37632609]
[1761291893822,2.63,192.4,192.28,0.9048009]
[1761291894024,2.63,192.4,192.32,2.37632609]
[1761291894325,2.63,192.38,192.29,2.37632609]
[1761291894619,11.5322051,192.37,192.29,2.37632609]
[1761291894819,6.67824563,192.36,192.29,2.37632609]
[1761291895019,2.63,192.36,192.29,2.37632609]
[1761291895223,2.63,192.36,192.3,2.37632609]
[1761291897019,2.63,192.36,192.28,0.9048009]
[1761291897221,2.63,192.34,192.28,0.9048009]
[1761291898519,2.63,192.34,192.28,3.28112699]
[1761291899427,2.63,192.34,192.3,2.37632609]
[1761291899728,2.63,192.34,192.28,0.9048009]
[1761291899928,2.63,192.34,192.3,2.37632609]
[1761291901225,2.78,192.38,192.29,7.05542609]
[1761291901425,8.90078018,192.39,192.29,7.05542609]
[1761291901426,2.78,192.36,192.29,7.05542609]
[1761291902325,2.78,192.36,192.31,4.6787]
[1761291904233,2.78,192.36,192.29,4.6792]
[1761291904535,2.78,192.36,192.28,0.9048009]
[1761291904722,2.78,192.34,192.28,0.9048009]
[1761291905036,2.78,192.32,192.28,0.9048009]
[1761291908031,2.78,192.32,192.2,43.56]
[1761291908230,2.78,192.3,192.12,9.3665]
[1761291908431,2.78,192.3,192.22,0.90513037]
[1761291908737,2.78,192.3,192.2,4.6811]
[1761291908926,2.78,192.3,192.22,0.9052481]
[1761291909328,2.78,192.3,192.17,4.6819]
[1761291909329,2.78,192.28,192.17,4.6819]
[1761291909539,2.78,192.27,192.18,0.90531875]
[1761291910031,2.78,192.26,192.18,0.90531875]
[1761291910229,5.15632609,192.26,192.13,2.37632609]
[1761291910430,2.78,192.25,192.17,2.37632609]
[1761291910630,2.78,192.25,192.18,0.9054483]
[1761291912635,2.78,192.25,192.11,2.37632609]
[1761291912937,2.78,192.25,192.14,0.90553076]
[1761291913326,2.78,192.25,192.14,3.28185685]
[1761291913734,2.78,192.25,192.14,5.58823076]
[1761291914331,2.78,192.25,192.14,7.96455685]
[1761291915039,2.78,192.24,192.14,5.58823076]
[1761291915838,2.78,192.21,192.14,0.90553076]
[1761291916838,2.78,192.21,192.11,4.6835]
[1761291917040,2.78,192.21,192.14,0.90560146]
[1761291918136,2.78,192.21,191.95,12.94023508]
[1761291918137,72.8341,192.17,191.95,12.94023508]
[1761291918337,2.78,191.96,191.81,2.37632609]
[1761291918835,2.37632609,191.94,191.84,0.90687584]
[1761291919038,2.78,191.84,191.59,15.83999999]
[1761291919335,2.78,191.84,191.66,44.62]
[1761291919336,0.90723047,191.72,191.66,44.62]
[1761291919541,2.37635656,191.72,191.58,4.6964]
[1761291919731,3.047e-05,191.72,191.57,1.69]
[1761291919932,3.047e-05,191.72,191.44,73.107]
[1761291919933,2.37632609,191.63,191.44,1.69]
[1761291920135,2.37632609,191.7,191.46,1.69]
[1761291920335,2.37632609,191.61,191.47,1.69]
[1761291920540,4.6935,191.71,191.53,2.37632609]
[1761291920841,4.6935,191.71,191.47,45.3]
[1761291920842,5.78956109,191.71,191.47,5.78956109]
[1761291921037,3.047e-05,191.72,191.53,1.69]
[1761291921242,4.80717043,191.87,191.6,5.78956109]
[1761291921438,2.78,191.85,191.62,1.69]
[1761291921634,2.78,191.84,191.63,1.5]
[1761291921836,2.78,191.83,191.65,1.69]
[1761291922239,2.78,191.83,191.7,1.69]
[1761291922440,2.78,191.83,191.64,62.0]
[1761291922441,2.78,191.83,191.65,1.69]
[1761291923434,2.78,191.83,191.66,1.69]
[1761291924341,2.78,191.83,191.68,1.69]
[1761291924643,2.78,191.83,191.69,47.59]
[1761291924940,2.78,191.83,191.69,1.69]
[1761291925251,2.78,191.83,191.7,45.9]
[1761291925745,2.78,191.83,191.69,1.69]
[1761291925937,2.78,191.83,191.7,45.9]
[1761291926138,2.78,191.83,191.7,47.59]
[1761291926445,2.78,191.83,191.71,1.69]
[1761291927249,2.78,191.83,191.73,0.90750254]
[1761291928740,2.78,191.83,191.7,45.86]
[1761291929242,2.78,191.83,191.71,0.90756171]
[1761291929447,2.78,191.83,191.7,45.86]
[1761291929651,2.78,191.83,191.71,45.84]
[1761291930247,2.78,191.83,191.72,45.84]
[1761291930448,2.62,191.81,191.67,1.7]
[1761291930639,2.62,191.81,191.63,3.82793459]
[1761291930952,2.62,191.78,191.65,45.82]
[1761291931145,2.62,191.78,191.66,1.7]
[1761291932249,2.62,191.78,191.67,45.82]
[1761291932450,2.62,191.78,191.69,1.7]
[1761291933250,2.62,191.78,191.7,45.8]
[1761291934352,2.62,191.78,191.69,1.7]
[1761291934554,2.62,191.78,191.7,45.76]
[1761291935056,2.62,191.78,191.69,1.7]
[1761291935246,2.62,191.78,191.7,45.76]
[1761291936754,2.62,191.78,191.7,1.7]
[1761291937052,2.62,191.78,191.71,45.76]
[1761291939356,2.62,191.78,191.65,1.7]
[1761291939648,2.62,191.78,191.66,4.8]
[1761291939855,2.62,191.77,191.66,4.8]
[1761291940261,2.62,191.77,191.65,1.7]
[1761291940456,2.62,191.77,191.66,0.90778662]
[1761291940457,2.62,191.73,191.66,0.90778662]
[1761291940652,2.62,191.73,191.63,5.84]
[1761291941257,2.62,191.73,191.63,7.54]
[1761291941458,2.62,191.73,191.64,1.7]
[1761291942757,2.62,191.73,191.65,45.66]
[1761291942954,2.62,191.73,191.64,1.7]
[1761291943156,2.62,191.73,191.66,45.64]
[1761291943859,2.62,191.73,191.64,1.7]
[1761291944157,2.62,191.73,191.65,45.62]
[1761291944758,2.62,191.73,191.66,1.53206707]
[1761291944959,2.62,191.73,191.67,45.62]
[1761291945159,2.62,191.73,191.64,1.7]
[1761291945358,2.62,191.73,191.63,4.6952]
[1761291945359,2.62,191.73,191.66,1.7]
[1761291945552,2.62,191.76,191.66,1.7]
[1761291945757,2.62,191.76,191.67,1.53206707]
[1761291945958,2.62,191.76,191.68,7.66]
[1761291946158,7.3122,191.76,191.66,1.7]
[1761291946364,2.62,191.75,191.67,1.53206707]
[1761291946662,2.62,191.75,191.68,8.02]
[1761291946862,2.62,191.8,191.69,1.53206707]
[1761291947163,2.62,191.79,191.71,1.53206707]
[1761291947358,2.62,191.79,191.73,1.53206707]
[1761291949061,2.62,191.79,191.74,1.53206707]
[1761291949458,2.62,191.77,191.65,1.7]
[1761291949659,2.62,191.75,191.69,1.53206707]
[1761291950551,2.62,191.75,191.66,45.52]
[1761291950552,1.53206707,191.74,191.6,1.7]
[1761291950759,2.62,191.67,191.56,3.51361167]
[1761291950956,72.9806,191.79,191.56,3.51361167]
[1761291950957,4.6951,191.64,191.56,0.90801164]
[1761291951162,2.62,191.63,191.56,0.90801164]
[1761291951355,2.62,191.63,191.5,6.07361167]
[1761291951554,2.62,191.59,191.5,1.7]
[1761291951849,2.62,191.59,191.49,0.90865177]
[1761291952255,2.62,191.59,191.47,1.7]
[1761291952457,2.62,191.59,191.47,2.6086755]
[1761291952659,2.62,191.59,191.5,1.7]
[1761291952858,2.62,191.71,191.5,1.7]
[1761291953052,4.6943,191.67,191.52,1.7]
[1761291953258,2.62,191.66,191.52,1.7]
[1761291953454,2.62,191.65,191.52,1.7]
[1761291954165,2.62,191.64,191.52,1.7]
[1761291954671,2.62,191.64,191.55,4.6972]
[1761291955254,2.62,191.64,191.57,4.6967]
[1761291955666,2.62,191.7,191.57,4.6967]
[1761291955861,2.62,191.69,191.57,6.3967]
[1761291956264,2.62,191.68,191.57,6.3967]
[1761291956460,2.62,191.68,191.57,51.9367]
[1761291957363,2.62,191.68,191.58,1.7]
[1761291958268,2.62,191.66,191.57,45.48]
[1761291958957,2.62,191.66,191.54,1.7]
[1761291959161,4.01397943,191.65,191.55,45.48]
[1761291959370,2.62,191.66,191.55,45.48]
[1761291959571,4.04438453,191.65,191.55,47.18]
[1761291959769,2.62,191.66,191.55,50.1772]
[1761291960068,4.04438686,191.65,191.56,1.7]
[1761291960269,4.0544059,191.64,191.56,1.7]
[1761291960576,4.66796521,191.69,191.6,1.7]
[1761291960869,4.05476121,191.68,191.6,1.7]
[1761291961069,4.05476121,191.67,191.6,1.7]
[1761291961265,4.06701681,191.66,191.62,1.7]
[1761291961472,4.06701681,191.65,191.62,1.7]
[1761291961665,4.06701681,191.64,191.62,1.7]
[1761291961869,4.66796521,191.69,191.62,1.7]
[1761291962069,4.06827487,191.68,191.62,1.7]
[1761291962270,4.66796521,191.66,191.63,4.6953]
[1761291962465,9.66457247,191.71,191.63,4.6953]
[1761291962466,4.06827487,191.65,191.64,1.7]
[1761291963166,8.73624008,191.65,191.64,2.74]
[1761291963475,4.66796521,191.71,191.65,4.6946]
[1761291963676,8.13712259,191.7,191.65,4.6946]
[1761291963861,8.13712259,191.69,191.65,4.6946]
[1761291964067,3.1124741,191.68,191.67,6.3942]
[1761291964262,2.76,191.78,191.67,48.14]
[1761291964470,4.45528169,191.77,191.67,47.1]
[1761291964669,2.76,191.78,191.69,6.3938]
[1761291964975,4.4554485,191.77,191.69,6.3938]
[1761291965172,2.76,191.78,191.69,6.3938]
[1761291965369,4.45567586,191.77,191.71,4.6933]
[1761291965561,4.45546365,191.79,191.7,1.7]
[1761291965766,2.76,191.81,191.7,1.7]
[1761291965966,4.45546882,191.8,191.7,1.7]
[1761291966167,4.45546882,191.79,191.7,1.7]
[1761291966372,2.76,191.81,191.73,4.6928]
[1761291966561,4.45560366,191.8,191.73,4.6928]
[1761291966768,4.45560366,191.79,191.73,4.6928]
[1761291966963,2.76,191.81,191.73,4.6928]
[1761291967168,4.455604,191.8,191.73,4.6928]
[1761291967475,2.76,191.81,191.73,4.6928]
[1761291967476,0.48708,191.75,191.74,1.7]
[1761291967863,0.48708,191.75,191.74,47.06]
[1761291968466,2.76,191.81,191.76,4.6921]
[1761291968764,2.76,191.8,191.73,7.0]
[1761291968963,2.76,191.77,191.73,7.0]
[1761291969573,2.76,191.75,191.73,7.0]
[1761291970579,2.76,191.74,191.73,7.0]
[1761291972975,2.76,191.74,191.73,14.0]
[1761291974274,2.76,191.76,191.73,14.0]
[1761291974876,4.66796521,191.76,191.73,14.0]
[1761291975079,2.76,191.75,191.73,14.0]
[1761291975376,9.66457247,191.82,191.73,14.0]
[1761291975377,7.452,191.77,191.73,14.0]
[1761291975977,3.85744273,191.76,191.73,14.0]
[1761291976174,2.76,191.77,191.73,14.0]
[1761291976883,2.76,191.77,191.76,7.0]
[1761291977983,2.76,191.8,191.76,7.0]
[1761291978286,2.76,191.79,191.76,7.0]
[1761291978581,4.6911,191.81,191.76,7.0]
[1761291978887,2.76,191.8,191.76,7.0]
[1761291979975,4.6906,191.82,191.76,7.0]
[1761291982480,2.76,191.84,191.77,1.7]
[1761291982679,2.76,191.84,191.82,7.0]
[1761291983484,2.76,191.86,191.82,7.0]
[1761291984482,4.6889,191.89,191.82,8.7]
[1761291984783,7.4489,191.89,191.82,8.7]
[1761291985881,7.4494,191.87,191.82,8.7]
[1761291986276,2.76,191.92,191.83,1.7]
[1761291986478,2.76,191.91,191.82,7.0]
[1761291986683,4.6889,191.89,191.82,7.0]
[1761291987590,4.6889,191.89,191.82,8.7]
[1761291988098,7.4484,191.91,191.82,8.7]
[1761291988589,7.4484,191.91,191.83,1.7]
[1761291988793,2.76,191.91,191.83,1.7]
[1761291990093,4.6887,191.9,191.83,1.7]
[1761291990783,4.6892,191.88,191.83,1.7]
[1761291990984,7.5292,191.88,191.83,1.7]
[1761291991195,2.84,191.87,191.83,1.7]
[1761291991689,7.5297,191.86,191.82,7.0]
[1761291991888,2.84,191.85,191.82,7.0]
[1761291992483,2.84,191.84,191.82,7.0]
[1761291993081,2.84,191.83,191.82,7.0]
[1761291995498,7.5315,191.79,191.76,7.0]
[1761291995701,2.84,191.78,191.76,7.0]
[1761291996090,2.84,191.78,191.73,14.0]
[1761291996493,2.84,191.78,191.73,15.7]
[1761291997701,4.6919,191.77,191.73,15.7]
[1761291999303,7.5319,191.77,191.73,15.7]
[1761291999891,4.6919,191.77,191.73,14.0]
[1761292000093,2.84,191.74,191.73,14.0]
[1761292002205,2.84,191.74,191.73,7.0]
[1761292002402,4.693,191.73,191.64,1.7]
[1761292003505,5.77138242,191.8,191.61,1.7]
[1761292003506,2.84,191.7,191.61,1.7]
[1761292004011,2.84,191.74,191.61,1.7]
[1761292004704,4.6933,191.71,191.62,1.7]
[1761292004899,2.84,191.74,191.62,1.7]
[1761292006105,4.6931,191.72,191.63,1.7]
[1761292006504,4.6931,191.72,191.65,1.7]
[1761292006911,4.6926,191.74,191.65,1.7]
[1761292007106,2.84,191.78,191.65,1.7]
[1761292007706,4.6926,191.75,191.66,4.6943]
[1761292007907,4.6926,191.75,191.67,1.7]
[1761292008713,2.84,191.82,191.69,1.7]
[1761292009415,2.84,191.82,191.69,63.7]
[1761292009622,2.84,191.82,191.7,1.7]
[1761292010018,4.6914,191.79,191.7,1.7]
[1761292010612,2.84,191.82,191.71,1.7]
[1761292010613,7.5309,191.82,191.71,1.7]
[1761292011116,2.84,191.86,191.71,1.7]
[1761292011314,4.66796521,191.91,191.64,9.64539655]
[1761292011315,2.84,191.84,191.72,1.7]
[1761292012111,2.84,191.84,191.76,1.7]
[1761292013418,4.6901,191.85,191.76,1.7]
[1761292013620,4.6901,191.85,191.83,7.0]
[1761292015927,4.6901,191.85,191.79,1.7]
[1761292016625,5.77138242,191.93,191.75,66.6923]
[1761292016626,2.84,191.83,191.75,1.7]
[1761292017827,4.6903,191.84,191.75,1.7]
[1761292017828,4.66796521,191.93,191.75,1.7]
[1761292018130,2.84,191.87,191.75,1.7]
[1761292018533,2.84,191.87,191.75,46.5]
[1761292018733,2.84,191.87,191.76,1.7]
[1761292019036,7.5296,191.87,191.77,1.7]
[1761292019634,7.5296,191.87,191.77,4.6916]
[1761292019823,7.5296,191.87,191.78,1.7]
[1761292020833,2.65,191.86,191.78,1.7]
[1761292021038,2.65,191.83,191.74,1.7]
[1761292021540,2.65,191.81,191.74,1.7]
[1761292021836,2.65,191.81,191.7,1.7]
[1761292022938,2.65,191.81,191.69,7.95732]
[1761292022939,2.65,191.83,191.74,1.7]
[1761292023328,2.65,191.89,191.74,1.7]
[1761292023842,4.6902,191.84,191.76,1.7]
[1761292025537,2.65,191.86,191.76,1.7]
[1761292025836,2.65,191.86,191.78,1.7]
[1761292026635,3.8411145,191.91,191.78,1.7]
[1761292026837,2.65,191.89,191.79,1.7]
[1761292027432,2.65,191.89,191.81,1.7]
[1761292028737,2.65,191.89,191.82,4.6906]
[1761292029038,2.65,191.89,191.82,6.3906]
[1761292029228,4.6879,191.94,191.83,1.7]
[1761292029433,2.65,191.93,191.83,1.7]